[Event "*** SCC Grand Prix: Titled Tuesday Blitz"]
[Site "Chess.com"]
[Date "2020.07.14"]
[Round "1"]
[White "vovachesss"]
[Black "DinaBelenkaya"]
[Result "1-0"]
[WhiteElo "2577"]
[BlackElo "2262"]
[TimeControl "180+1"]
[EndTime "10:05:42 PDT"]
[Termination "vovachesss won on time"]

1. c4 {[%clk 0:02:56.3]} 1... e5 {[%clk 0:02:59.4]} 2. Nc3 {[%clk 0:02:55.5]}
2... Nc6 {[%clk 0:02:58.2]} 3. Nf3 {[%clk 0:02:55.1]} 3... Nf6 {[%clk
0:02:51.7]} 4. g3 {[%clk 0:02:49.6]} 4... Bb4 {[%clk 0:02:46.4]} 5. Bg2 {[%clk
0:02:47.2]} 5... O-O {[%clk 0:02:44.9]} 6. O-O {[%clk 0:02:46.9]} 6... a5 {[%clk
0:02:33.6]} 7. Nd5 {[%clk 0:02:42.6]} 7... Bc5 {[%clk 0:02:31.7]} 8. d3 {[%clk
0:02:37.8]} 8... h6 {[%clk 0:02:30.1]} 9. Rb1 {[%clk 0:02:34]} 9... d6 {[%clk
0:02:28.6]} 10. a3 {[%clk 0:02:20.7]} 10... a4 {[%clk 0:02:28.1]} 11. Nc3 {[%clk
0:02:19.6]} 11... Bg4 {[%clk 0:01:53.5]} 12. Nxa4 {[%clk 0:02:18.1]} 12... Qd7
{[%clk 0:01:45.6]} 13. b4 {[%clk 0:02:10.6]} 13... Ba7 {[%clk 0:01:43.2]} 14. b5
{[%clk 0:02:02.2]} 14... Nd8 {[%clk 0:01:40]} 15. b6 {[%clk 0:01:59.8]} 15...
cxb6 {[%clk 0:01:33.1]} 16. Nxb6 {[%clk 0:01:59.9]} 16... Bxb6 {[%clk 0:01:34]}
17. Rxb6 {[%clk 0:02:00.3]} 17... Ra6 {[%clk 0:01:29.3]} 18. Qb3 {[%clk
0:01:58.1]} 18... Qc7 {[%clk 0:01:24.5]} 19. Be3 {[%clk 0:01:56.5]} 19... Nd7
{[%clk 0:01:03.9]} 20. Rb5 {[%clk 0:01:46.2]} 20... Nc5 {[%clk 0:00:30.1]} 21.
Qb4 {[%clk 0:01:25.1]} 21... Ra4 {[%clk 0:00:26.4]} 22. Qb2 {[%clk 0:01:25.1]}
22... f5 {[%clk 0:00:03]} 23. Bxc5 {[%clk 0:01:22]} 23... dxc5 {[%clk
0:00:03.9]} 24. Nxe5 {[%clk 0:01:22.1]} 1-0

[Event "*** SCC Grand Prix: Titled Tuesday Blitz"]
[Site "Chess.com"]
[Date "2020.07.14"]
[Round "1"]
[White "BakaPG"]
[Black "Stosk"]
[Result "1/2-1/2"]
[WhiteElo "2644"]
[BlackElo "2352"]
[TimeControl "180+1"]
[EndTime "10:05:43 PDT"]
[Termination "Game drawn by repetition"]

1. e4 {[%clk 0:03:00.5]} 1... c5 {[%clk 0:02:59.1]} 2. Nf3 {[%clk 0:02:59.9]}
2... Nc6 {[%clk 0:02:59]} 3. Nc3 {[%clk 0:02:58.6]} 3... g6 {[%clk 0:02:58.9]}
4. d4 {[%clk 0:02:58.1]} 4... cxd4 {[%clk 0:02:59.4]} 5. Nxd4 {[%clk 0:02:58.8]}
5... Bg7 {[%clk 0:03:00.3]} 6. Be3 {[%clk 0:02:58.9]} 6... Nf6 {[%clk
0:03:00.1]} 7. Bc4 {[%clk 0:02:57.7]} 7... O-O {[%clk 0:03:00.1]} 8. Bb3 {[%clk
0:02:57.8]} 8... e6 {[%clk 0:03:00]} 9. O-O {[%clk 0:02:47.2]} 9... d5 {[%clk
0:02:59.5]} 10. exd5 {[%clk 0:02:45.7]} 10... exd5 {[%clk 0:02:57.2]} 11. h3
{[%clk 0:02:43.4]} 11... Re8 {[%clk 0:02:54.8]} 12. Qd2 {[%clk 0:02:40.9]} 12...
Be6 {[%clk 0:02:47.4]} 13. Rad1 {[%clk 0:02:38.1]} 13... Ne5 {[%clk 0:02:36.7]}
14. f4 {[%clk 0:02:31.1]} 14... Nc4 {[%clk 0:02:27.1]} 15. Bxc4 {[%clk
0:02:29.8]} 15... dxc4 {[%clk 0:02:26.5]} 16. Nxe6 {[%clk 0:02:27.9]} 16... fxe6
{[%clk 0:02:26.6]} 17. Qxd8 {[%clk 0:02:24.6]} 17... Rexd8 {[%clk 0:02:26.2]}
18. Rxd8+ {[%clk 0:02:23.8]} 18... Rxd8 {[%clk 0:02:25.5]} 19. Bxa7 {[%clk
0:02:23.7]} 19... Nd5 {[%clk 0:02:13.4]} 20. Nxd5 {[%clk 0:01:47]} 20... exd5
{[%clk 0:02:13.1]} 21. b3 {[%clk 0:01:46.6]} 21... Ra8 {[%clk 0:02:11]} 22. Bf2
{[%clk 0:01:33]} 22... Rxa2 {[%clk 0:02:10.2]} 23. bxc4 {[%clk 0:01:30.4]} 23...
dxc4 {[%clk 0:02:09]} 24. Rb1 {[%clk 0:01:27.8]} 24... Rxc2 {[%clk 0:01:54.4]}
25. Rxb7 {[%clk 0:01:27.2]} 25... h5 {[%clk 0:01:46.4]} 26. g4 {[%clk
0:01:26.4]} 26... hxg4 {[%clk 0:01:42.6]} 27. hxg4 {[%clk 0:01:25.9]} 27... c3
{[%clk 0:01:42.8]} 28. Rc7 {[%clk 0:01:20.9]} 28... Rc1+ {[%clk 0:01:40.2]} 29.
Kg2 {[%clk 0:01:20.5]} 29... Rd1 {[%clk 0:01:32.3]} 30. Kf3 {[%clk 0:01:14.7]}
30... Rd8 {[%clk 0:01:23.1]} 31. Be3 {[%clk 0:01:12.3]} 31... Rf8 {[%clk
0:01:09.1]} 32. Ke4 {[%clk 0:01:05.8]} 32... Re8+ {[%clk 0:01:00.2]} 33. Kf3
{[%clk 0:01:04.3]} 33... Rf8 {[%clk 0:01:00.3]} 34. Ke4 {[%clk 0:01:02.9]} 34...
Re8+ {[%clk 0:00:58.9]} 35. Kd3 {[%clk 0:00:59.4]} 35... Rd8+ {[%clk 0:00:58.7]}
36. Ke4 {[%clk 0:00:58.7]} 36... Re8+ {[%clk 0:00:58.7]} 1/2-1/2

[Event "*** SCC Grand Prix: Titled Tuesday Blitz"]
[Site "Chess.com"]
[Date "2020.07.14"]
[Round "1"]
[White "davidkalashian"]
[Black "2008king"]
[Result "1-0"]
[WhiteElo "2573"]
[BlackElo "2246"]
[TimeControl "180+1"]
[EndTime "10:05:45 PDT"]
[Termination "davidkalashian won by resignation"]

1. e4 {[%clk 0:02:59.1]} 1... e5 {[%clk 0:01:09.9]} 2. Nf3 {[%clk 0:02:58]} 2...
Nc6 {[%clk 0:01:09.8]} 3. d4 {[%clk 0:02:56.7]} 3... exd4 {[%clk 0:01:09.8]} 4.
Nxd4 {[%clk 0:02:56.8]} 4... Nf6 {[%clk 0:01:09.9]} 5. Nc3 {[%clk 0:02:57.2]}
5... Bb4 {[%clk 0:01:09.1]} 6. Nxc6 {[%clk 0:02:56.8]} 6... bxc6 {[%clk
0:01:10]} 7. Bd3 {[%clk 0:02:56.9]} 7... d5 {[%clk 0:01:10.2]} 8. exd5 {[%clk
0:02:57.8]} 8... cxd5 {[%clk 0:01:11.1]} 9. O-O {[%clk 0:02:57.4]} 9... O-O
{[%clk 0:01:11]} 10. Bg5 {[%clk 0:02:57.9]} 10... c6 {[%clk 0:01:11]} 11. Qf3
{[%clk 0:02:57.1]} 11... Bd6 {[%clk 0:01:11.2]} 12. Rfe1 {[%clk 0:02:54.9]}
12... Rb8 {[%clk 0:01:10.7]} 13. Rab1 {[%clk 0:02:55.3]} 13... h6 {[%clk
0:01:10.4]} 14. Bh4 {[%clk 0:02:53.1]} 14... Be6 {[%clk 0:01:10.2]} 15. Ne2
{[%clk 0:02:50.1]} 15... c5 {[%clk 0:01:09.1]} 16. Nf4 {[%clk 0:02:43.8]} 16...
Bg4 {[%clk 0:01:00.9]} 17. Bxf6 {[%clk 0:01:57.9]} 17... Qxf6 {[%clk 0:01:01.8]}
18. Qxg4 {[%clk 0:01:42.4]} 18... Qxf4 {[%clk 0:00:59.5]} 19. Qh5 {[%clk
0:01:37.1]} 19... Rfe8 {[%clk 0:00:53.3]} 20. g3 {[%clk 0:01:33.5]} 20... Qg5
{[%clk 0:00:51.7]} 21. Qf3 {[%clk 0:01:22.7]} 21... Qf6 {[%clk 0:00:35.8]} 22.
Qxd5 {[%clk 0:01:16.4]} 22... Rxe1+ {[%clk 0:00:34.2]} 23. Rxe1 {[%clk
0:01:15.8]} 23... Rxb2 {[%clk 0:00:28.4]} 24. Re8+ {[%clk 0:01:14.3]} 24... Bf8
{[%clk 0:00:28.6]} 25. Qa8 {[%clk 0:01:08.1]} 25... Qd6 {[%clk 0:00:27.6]} 26.
Rxf8+ {[%clk 0:01:07.2]} 26... Qxf8 {[%clk 0:00:28.5]} 27. Bh7+ {[%clk 0:01:07]}
27... Kxh7 {[%clk 0:00:29]} 28. Qxf8 {[%clk 0:01:06.9]} 28... Rxc2 {[%clk
0:00:29.4]} 29. Qxf7 {[%clk 0:01:05.8]} 29... Rc1+ {[%clk 0:00:29.1]} 30. Kg2
{[%clk 0:01:05.4]} 30... Ra1 {[%clk 0:00:28.6]} 1-0

[Event "*** SCC Grand Prix: Titled Tuesday Blitz"]
[Site "Chess.com"]
[Date "2020.07.14"]
[Round "1"]
[White "Michaelson_11"]
[Black "chessablanca"]
[Result "0-1"]
[WhiteElo "2115"]
[BlackElo "2494"]
[TimeControl "180+1"]
[EndTime "10:05:45 PDT"]
[Termination "chessablanca won on time"]

1. e4 {[%clk 0:02:59.3]} 1... e5 {[%clk 0:02:59.9]} 2. Nf3 {[%clk 0:02:58.9]}
2... Nc6 {[%clk 0:03:00]} 3. Nc3 {[%clk 0:02:58.4]} 3... Nf6 {[%clk 0:02:59.5]}
4. Bb5 {[%clk 0:02:58.3]} 4... Be7 {[%clk 0:02:55.8]} 5. d4 {[%clk 0:02:57.3]}
5... Nxd4 {[%clk 0:02:51.5]} 6. Nxd4 {[%clk 0:02:58.2]} 6... exd4 {[%clk
0:02:51.6]} 7. Qxd4 {[%clk 0:02:58.1]} 7... a6 {[%clk 0:02:52]} 8. Be2 {[%clk
0:02:38.6]} 8... d6 {[%clk 0:02:48]} 9. Bg5 {[%clk 0:02:37.1]} 9... Be6 {[%clk
0:02:47.2]} 10. O-O {[%clk 0:02:36.7]} 10... h6 {[%clk 0:02:46.2]} 11. Be3
{[%clk 0:02:27.8]} 11... O-O {[%clk 0:02:43.2]} 12. f4 {[%clk 0:02:27.4]} 12...
b5 {[%clk 0:02:27.7]} 13. f5 {[%clk 0:02:17.7]} 13... Bc8 {[%clk 0:02:22.5]} 14.
Qd2 {[%clk 0:02:13.1]} 14... b4 {[%clk 0:02:08.9]} 15. Nd5 {[%clk 0:01:32]}
15... a5 {[%clk 0:02:00.9]} 16. Bf3 {[%clk 0:01:27.9]} 16... Bb7 {[%clk
0:01:58.2]} 17. c4 {[%clk 0:01:08.7]} 17... c6 {[%clk 0:01:46.3]} 18. Nxe7+
{[%clk 0:00:33.1]} 18... Qxe7 {[%clk 0:01:45.2]} 19. Rad1 {[%clk 0:00:17.7]}
19... Nxe4 {[%clk 0:01:40.4]} 20. Bxe4 {[%clk 0:00:17.4]} 20... Qxe4 {[%clk
0:01:41.3]} 21. Rf4 {[%clk 0:00:18.3]} 21... Qe7 {[%clk 0:01:37.9]} 22. f6
{[%clk 0:00:17.8]} 22... Qe5 {[%clk 0:01:35.6]} 23. fxg7 {[%clk 0:00:15.3]}
23... Rfe8 {[%clk 0:01:35.5]} 24. Bd4 {[%clk 0:00:10.8]} 24... Qg5 {[%clk
0:01:35.1]} 25. Be3 {[%clk 0:00:04.8]} 25... c5 {[%clk 0:01:28.5]} 26. g3 {[%clk
0:00:01.6]} 26... Qe5 {[%clk 0:01:26.4]} 0-1

[Event "*** SCC Grand Prix: Titled Tuesday Blitz"]
[Site "Chess.com"]
[Date "2020.07.14"]
[Round "1"]
[White "Kavyev_Ruslan"]
[Black "Evachess2006"]
[Result "1-0"]
[WhiteElo "2456"]
[BlackElo "1614"]
[TimeControl "180+1"]
[EndTime "10:05:45 PDT"]
[Termination "Kavyev_Ruslan won on time"]

1. d4 {[%clk 0:02:51.7]} 1... d5 {[%clk 0:02:15.3]} 2. c4 {[%clk 0:02:49]} 2...
e6 {[%clk 0:01:49.1]} 3. g3 {[%clk 0:02:47.6]} 3... Nf6 {[%clk 0:01:32]} 4. Bg2
{[%clk 0:02:44.4]} 4... Bb4+ {[%clk 0:01:32.1]} 5. Bd2 {[%clk 0:02:44.3]} 5...
Bxd2+ {[%clk 0:01:30]} 6. Nxd2 {[%clk 0:02:44.1]} 6... O-O {[%clk 0:01:30.5]} 7.
Ngf3 {[%clk 0:02:44.3]} 7... c6 {[%clk 0:01:20.3]} 8. O-O {[%clk 0:02:44.2]}
8... Nbd7 {[%clk 0:01:17.2]} 9. Qc2 {[%clk 0:02:44.2]} 9... b6 {[%clk
0:00:51.3]} 10. e4 {[%clk 0:02:43.8]} 10... dxe4 {[%clk 0:00:44.7]} 11. Nxe4
{[%clk 0:02:44.7]} 11... Nxe4 {[%clk 0:00:43.2]} 12. Qxe4 {[%clk 0:02:45.6]}
12... Bb7 {[%clk 0:00:43]} 13. Ne5 {[%clk 0:02:43.5]} 13... Nxe5 {[%clk
0:00:30.6]} 14. dxe5 {[%clk 0:02:43.5]} 14... Qc7 {[%clk 0:00:25.3]} 15. Rfd1
{[%clk 0:02:43.2]} 15... Rad8 {[%clk 0:00:22.7]} 16. c5 {[%clk 0:02:29.9]} 16...
bxc5 {[%clk 0:00:16.4]} 17. Qe3 {[%clk 0:02:09.5]} 17... Qb6 {[%clk 0:00:05.2]}
18. Qc3 {[%clk 0:01:31.7]} 18... Rxd1+ {[%clk 0:00:02.4]} 19. Rxd1 {[%clk
0:01:32.6]} 19... Rd8 {[%clk 0:00:02.7]} 20. Rd6 {[%clk 0:01:29.6]} 20... Rxd6
{[%clk 0:00:02.4]} 21. exd6 {[%clk 0:01:30.5]} 21... Qd8 {[%clk 0:00:02.7]} 22.
Qxc5 {[%clk 0:01:30.2]} 22... Qd7 {[%clk 0:00:03.2]} 23. b4 {[%clk 0:01:28.4]}
23... Kf8 {[%clk 0:00:02.7]} 24. b5 {[%clk 0:01:24.8]} 24... cxb5 {[%clk
0:00:03]} 25. Bxb7 {[%clk 0:01:24.6]} 25... Qxb7 {[%clk 0:00:03.6]} 26. d7+
{[%clk 0:01:25.5]} 1-0

[Event "*** SCC Grand Prix: Titled Tuesday Blitz"]
[Site "Chess.com"]
[Date "2020.07.14"]
[Round "1"]
[White "manitodeplomo"]
[Black "KingChess345"]
[Result "1-0"]
[WhiteElo "2514"]
[BlackElo "2160"]
[TimeControl "180+1"]
[EndTime "10:05:47 PDT"]
[Termination "manitodeplomo won on time"]

1. d4 {[%clk 0:02:56.4]} 1... Nf6 {[%clk 0:02:58.5]} 2. c4 {[%clk 0:02:56.6]}
2... e6 {[%clk 0:02:58.9]} 3. Nf3 {[%clk 0:02:55.7]} 3... Bb4+ {[%clk
0:02:59.1]} 4. Nbd2 {[%clk 0:02:54.9]} 4... b6 {[%clk 0:02:54.8]} 5. g3 {[%clk
0:02:54.1]} 5... Bb7 {[%clk 0:02:54.6]} 6. Bg2 {[%clk 0:02:53.9]} 6... O-O
{[%clk 0:02:51.8]} 7. O-O {[%clk 0:02:53.2]} 7... Bxd2 {[%clk 0:02:50.6]} 8.
Qxd2 {[%clk 0:02:52.8]} 8... d6 {[%clk 0:02:50.9]} 9. b3 {[%clk 0:02:52.4]} 9...
Qe7 {[%clk 0:02:49.6]} 10. Bb2 {[%clk 0:02:52.9]} 10... Be4 {[%clk 0:02:48.4]}
11. Rad1 {[%clk 0:02:52.4]} 11... Nbd7 {[%clk 0:02:47.9]} 12. Rfe1 {[%clk
0:02:52.1]} 12... Rad8 {[%clk 0:02:43.3]} 13. Bf1 {[%clk 0:02:51.6]} 13... e5
{[%clk 0:02:38.3]} 14. Nh4 {[%clk 0:02:51.3]} 14... Rfe8 {[%clk 0:02:20.3]} 15.
f3 {[%clk 0:02:50.8]} 15... Bb7 {[%clk 0:02:11.9]} 16. e4 {[%clk 0:02:47.7]}
16... a5 {[%clk 0:01:54.8]} 17. Nf5 {[%clk 0:02:47.2]} 17... Qf8 {[%clk
0:01:51.3]} 18. Bg2 {[%clk 0:02:47.1]} 18... g6 {[%clk 0:01:50.3]} 19. Nh6+
{[%clk 0:02:35.1]} 19... Kg7 {[%clk 0:01:40.3]} 20. g4 {[%clk 0:02:22.7]} 20...
Ng8 {[%clk 0:01:29.8]} 21. Nxg8 {[%clk 0:02:18.9]} 21... Kxg8 {[%clk 0:01:26.5]}
22. f4 {[%clk 0:02:19.8]} 22... Nf6 {[%clk 0:01:12.2]} 23. h3 {[%clk 0:02:12.7]}
23... Qe7 {[%clk 0:00:38]} 24. Re2 {[%clk 0:02:10]} 24... h5 {[%clk 0:00:27.7]}
25. Bf3 {[%clk 0:02:04.3]} 25... Bc8 {[%clk 0:00:18.6]} 26. f5 {[%clk
0:01:56.9]} 26... hxg4 {[%clk 0:00:11.4]} 27. hxg4 {[%clk 0:01:57.8]} 27... Nh7
{[%clk 0:00:11.4]} 28. Bc1 {[%clk 0:01:44.5]} 28... Qf6 {[%clk 0:00:08.5]} 29.
g5 {[%clk 0:01:41.4]} 29... Qe7 {[%clk 0:00:03.4]} 30. f6 {[%clk 0:01:41.1]}
30... Qe6 {[%clk 0:00:03.5]} 31. Rh2 {[%clk 0:01:41.2]} 31... exd4 {[%clk
0:00:02.1]} 32. Qf4 {[%clk 0:01:37.8]} 32... Qe5 {[%clk 0:00:03]} 33. Qh4 {[%clk
0:01:37.1]} 1-0

[Event "*** SCC Grand Prix: Titled Tuesday Blitz"]
[Site "Chess.com"]
[Date "2020.07.14"]
[Round "1"]
[White "Alberquintin"]
[Black "alexsergeyev"]
[Result "1-0"]
[WhiteElo "2683"]
[BlackElo "2339"]
[TimeControl "180+1"]
[EndTime "10:05:48 PDT"]
[Termination "Alberquintin won by resignation"]

1. c4 {[%clk 0:03:00.9]} 1... c6 {[%clk 0:02:59.5]} 2. d4 {[%clk 0:03:00.5]}
2... d5 {[%clk 0:02:59.4]} 3. cxd5 {[%clk 0:03:00.9]} 3... cxd5 {[%clk
0:02:58.4]} 4. Nc3 {[%clk 0:03:01.4]} 4... Nf6 {[%clk 0:02:58.3]} 5. Bf4 {[%clk
0:03:01.8]} 5... Nc6 {[%clk 0:02:58.3]} 6. e3 {[%clk 0:03:02.3]} 6... e6 {[%clk
0:02:58.1]} 7. Bd3 {[%clk 0:03:02.1]} 7... Bd6 {[%clk 0:02:58]} 8. Bxd6 {[%clk
0:03:02.4]} 8... Qxd6 {[%clk 0:02:58.4]} 9. f4 {[%clk 0:03:03]} 9... Bd7 {[%clk
0:02:58.5]} 10. Nf3 {[%clk 0:03:03.6]} 10... O-O-O {[%clk 0:02:58.4]} 11. O-O
{[%clk 0:03:03.9]} 11... Kb8 {[%clk 0:02:58.3]} 12. Rc1 {[%clk 0:03:04]} 12...
Rc8 {[%clk 0:02:58.1]} 13. Ne5 {[%clk 0:03:04.2]} 13... Qe7 {[%clk 0:02:57.4]}
14. a3 {[%clk 0:02:51.8]} 14... Rhd8 {[%clk 0:02:54.5]} 15. b4 {[%clk
0:02:50.8]} 15... Be8 {[%clk 0:02:52.2]} 16. Na4 {[%clk 0:02:50.1]} 16... Nxe5
{[%clk 0:02:36.1]} 17. Rxc8+ {[%clk 0:02:47.8]} 17... Rxc8 {[%clk 0:02:33.4]}
18. fxe5 {[%clk 0:02:48.1]} 18... Nd7 {[%clk 0:02:06.1]} 19. Nc5 {[%clk
0:02:46.8]} 19... f5 {[%clk 0:01:47.9]} 20. exf6 {[%clk 0:02:33.3]} 20... gxf6
{[%clk 0:01:39.7]} 21. Qf3 {[%clk 0:02:31.6]} 21... f5 {[%clk 0:01:30]} 22. Qf4+
{[%clk 0:02:27.1]} 22... Ka8 {[%clk 0:01:26]} 23. Qh6 {[%clk 0:02:20.3]} 23...
Nxc5 {[%clk 0:01:11.2]} 24. bxc5 {[%clk 0:02:19.2]} 24... b6 {[%clk 0:01:02.7]}
25. Ba6 {[%clk 0:02:18.6]} 25... Rc7 {[%clk 0:00:59.5]} 26. cxb6 {[%clk
0:02:08.8]} 26... axb6 {[%clk 0:00:58.4]} 27. Qf4 {[%clk 0:02:09]} 27... b5
{[%clk 0:00:45.1]} 28. Rb1 {[%clk 0:02:02.3]} 28... Rc3 {[%clk 0:00:31.6]} 29.
Bxb5 {[%clk 0:01:54.6]} 29... Bxb5 {[%clk 0:00:20.6]} 30. Rxb5 {[%clk
0:01:54.5]} 30... Qc7 {[%clk 0:00:20.5]} 31. Qxc7 {[%clk 0:01:47.5]} 31... Rxc7
{[%clk 0:00:20.3]} 32. Rb6 {[%clk 0:01:47.1]} 32... Re7 {[%clk 0:00:20.2]} 33.
a4 {[%clk 0:01:40.9]} 33... Ka7 {[%clk 0:00:19.7]} 34. a5 {[%clk 0:01:41.4]}
34... e5 {[%clk 0:00:19.9]} 35. Rd6 {[%clk 0:01:41.5]} 35... exd4 {[%clk
0:00:19.4]} 36. exd4 {[%clk 0:01:41.7]} 36... Re1+ {[%clk 0:00:15.3]} 37. Kf2
{[%clk 0:01:41.5]} 1-0

[Event "*** SCC Grand Prix: Titled Tuesday Blitz"]
[Site "Chess.com"]
[Date "2020.07.14"]
[Round "1"]
[White "Tonychess32"]
[Black "Fortitudine"]
[Result "1-0"]
[WhiteElo "2593"]
[BlackElo "2285"]
[TimeControl "180+1"]
[EndTime "10:05:48 PDT"]
[Termination "Tonychess32 won on time"]

1. e4 {[%clk 0:03:00.9]} 1... c5 {[%clk 0:02:59.3]} 2. Nf3 {[%clk 0:03:01]} 2...
d6 {[%clk 0:02:59.1]} 3. c3 {[%clk 0:03:01.5]} 3... Nf6 {[%clk 0:02:58]} 4. Bd3
{[%clk 0:03:01.7]} 4... g6 {[%clk 0:02:47.1]} 5. O-O {[%clk 0:03:01.1]} 5... Bg7
{[%clk 0:02:47]} 6. Re1 {[%clk 0:03:01.5]} 6... O-O {[%clk 0:02:45.6]} 7. Bc2
{[%clk 0:03:01.9]} 7... Nc6 {[%clk 0:02:30.4]} 8. d3 {[%clk 0:03:02]} 8... b5
{[%clk 0:02:22.2]} 9. a4 {[%clk 0:03:01.7]} 9... b4 {[%clk 0:02:19.6]} 10. h3
{[%clk 0:03:02.1]} 10... a5 {[%clk 0:02:18]} 11. d4 {[%clk 0:02:59.8]} 11...
bxc3 {[%clk 0:02:16.2]} 12. bxc3 {[%clk 0:02:59.7]} 12... cxd4 {[%clk
0:02:16.5]} 13. cxd4 {[%clk 0:02:58.3]} 13... Nb4 {[%clk 0:02:02.3]} 14. Nc3
{[%clk 0:02:45.9]} 14... Nxc2 {[%clk 0:01:56.8]} 15. Qxc2 {[%clk 0:02:45.6]}
15... Ba6 {[%clk 0:01:50.6]} 16. Nb5 {[%clk 0:02:41.2]} 16... Rc8 {[%clk
0:01:43.5]} 17. Qd3 {[%clk 0:02:36.7]} 17... Nd7 {[%clk 0:01:04.4]} 18. Bd2
{[%clk 0:02:32.8]} 18... Qb6 {[%clk 0:00:53.9]} 19. Rab1 {[%clk 0:02:23.9]}
19... e5 {[%clk 0:00:46.4]} 20. Be3 {[%clk 0:02:16.3]} 20... exd4 {[%clk
0:00:36.1]} 21. Bxd4 {[%clk 0:02:16.2]} 21... Nc5 {[%clk 0:00:30.9]} 22. Qa3
{[%clk 0:02:08.3]} 22... Bxd4 {[%clk 0:00:18]} 23. Nfxd4 {[%clk 0:02:07.6]}
23... Qd8 {[%clk 0:00:13.3]} 24. Nf3 {[%clk 0:01:54.5]} 24... Bb7 {[%clk
0:00:11.2]} 25. e5 {[%clk 0:01:42.7]} 25... dxe5 {[%clk 0:00:07.2]} 26. Nxe5
{[%clk 0:01:40.7]} 26... Qd5 {[%clk 0:00:06.7]} 27. f3 {[%clk 0:01:38]} 27...
Ne6 {[%clk 0:00:02.1]} 28. Ng4 {[%clk 0:01:34.3]} 1-0

[Event "*** SCC Grand Prix: Titled Tuesday Blitz"]
[Site "Chess.com"]
[Date "2020.07.14"]
[Round "1"]
[White "deep306"]
[Black "Suleyman_Chess06"]
[Result "1-0"]
[WhiteElo "2611"]
[BlackElo "2303"]
[TimeControl "180+1"]
[EndTime "10:05:49 PDT"]
[Termination "deep306 won on time"]

1. d4 {[%clk 0:03:00.9]} 1... d5 {[%clk 0:02:59.6]} 2. c4 {[%clk 0:03:00.1]}
2... dxc4 {[%clk 0:03:00.5]} 3. e4 {[%clk 0:02:59.6]} 3... Nf6 {[%clk
0:03:00.8]} 4. e5 {[%clk 0:02:59.4]} 4... Nd5 {[%clk 0:03:00.5]} 5. Bxc4 {[%clk
0:02:59.7]} 5... Nb6 {[%clk 0:02:57.7]} 6. Bd3 {[%clk 0:02:57.6]} 6... Nc6
{[%clk 0:02:54.1]} 7. Ne2 {[%clk 0:02:56.4]} 7... e6 {[%clk 0:02:50.4]} 8. Nbc3
{[%clk 0:02:53.8]} 8... Be7 {[%clk 0:02:50]} 9. O-O {[%clk 0:02:50.7]} 9... O-O
{[%clk 0:02:48.7]} 10. Be3 {[%clk 0:02:49.7]} 10... Nb4 {[%clk 0:02:47.5]} 11.
Be4 {[%clk 0:02:44]} 11... N4d5 {[%clk 0:02:47]} 12. Qc2 {[%clk 0:02:40]} 12...
h6 {[%clk 0:02:43.2]} 13. Nxd5 {[%clk 0:02:28.7]} 13... Nxd5 {[%clk 0:02:40.5]}
14. Bxd5 {[%clk 0:02:28.5]} 14... exd5 {[%clk 0:02:36]} 15. f4 {[%clk
0:02:27.9]} 15... g6 {[%clk 0:02:23.2]} 16. Ng3 {[%clk 0:02:27.2]} 16... Bh4
{[%clk 0:02:12.9]} 17. f5 {[%clk 0:02:27.1]} 17... Bxg3 {[%clk 0:02:12.6]} 18.
hxg3 {[%clk 0:02:26.9]} 18... Bxf5 {[%clk 0:01:50.7]} 19. Rxf5 {[%clk
0:02:26.4]} 19... gxf5 {[%clk 0:01:49]} 20. Bxh6 {[%clk 0:02:26.3]} 20... Qd7
{[%clk 0:01:44.1]} 21. Rf1 {[%clk 0:02:21.1]} 21... Qe6 {[%clk 0:01:23.8]} 22.
Bxf8 {[%clk 0:02:17.7]} 22... Kxf8 {[%clk 0:01:23.4]} 23. Rxf5 {[%clk
0:02:14.7]} 23... c6 {[%clk 0:01:19]} 24. Qf2 {[%clk 0:02:04.5]} 24... Ke8
{[%clk 0:01:08.6]} 25. Qf4 {[%clk 0:02:03.5]} 25... Rc8 {[%clk 0:01:04.1]} 26.
Rf6 {[%clk 0:02:02.9]} 26... Qe7 {[%clk 0:01:04.1]} 27. Qg4 {[%clk 0:01:45.9]}
27... Rc7 {[%clk 0:00:32.4]} 28. Rh6 {[%clk 0:01:34.2]} 1-0

[Event "*** SCC Grand Prix: Titled Tuesday Blitz"]
[Site "Chess.com"]
[Date "2020.07.14"]
[Round "1"]
[White "Matols"]
[Black "KNCP_719"]
[Result "0-1"]
[WhiteElo "2203"]
[BlackElo "2535"]
[TimeControl "180+1"]
[EndTime "10:05:52 PDT"]
[Termination "KNCP_719 won by resignation"]

1. d4 {[%clk 0:03:00.6]} 1... Nf6 {[%clk 0:02:59.2]} 2. c4 {[%clk 0:03:00.6]}
2... b6 {[%clk 0:02:58.4]} 3. Nc3 {[%clk 0:02:58.5]} 3... Bb7 {[%clk 0:02:58.8]}
4. e3 {[%clk 0:02:56.6]} 4... e6 {[%clk 0:02:57.2]} 5. Nge2 {[%clk 0:02:51.6]}
5... d5 {[%clk 0:02:54.7]} 6. cxd5 {[%clk 0:02:49.1]} 6... exd5 {[%clk
0:02:55.6]} 7. Nf4 {[%clk 0:02:47.6]} 7... Bd6 {[%clk 0:02:53.8]} 8. Nd3 {[%clk
0:02:45.4]} 8... O-O {[%clk 0:02:52.8]} 9. Be2 {[%clk 0:02:45]} 9... c5 {[%clk
0:02:52.6]} 10. O-O {[%clk 0:02:39]} 10... Nc6 {[%clk 0:02:51.8]} 11. dxc5
{[%clk 0:02:35.3]} 11... bxc5 {[%clk 0:02:52.7]} 12. b3 {[%clk 0:02:34.1]} 12...
d4 {[%clk 0:02:48.6]} 13. Nb5 {[%clk 0:02:20.1]} 13... Be7 {[%clk 0:02:05.3]}
14. exd4 {[%clk 0:02:07.6]} 14... a6 {[%clk 0:01:57.3]} 15. Na3 {[%clk
0:01:57.1]} 15... Nxd4 {[%clk 0:01:54.3]} 16. Bb2 {[%clk 0:01:49.6]} 16... Re8
{[%clk 0:01:34.9]} 17. Rc1 {[%clk 0:01:39.9]} 17... Qd5 {[%clk 0:01:27.8]} 18.
Nf4 {[%clk 0:01:26.1]} 18... Qg5 {[%clk 0:01:27.1]} 19. Bxd4 {[%clk 0:01:14.1]}
19... cxd4 {[%clk 0:01:25.1]} 20. Rc7 {[%clk 0:01:06.2]} 20... Qxf4 {[%clk
0:01:12.8]} 21. Rxb7 {[%clk 0:01:04]} 21... Bxa3 {[%clk 0:01:12.9]} 22. Bc4
{[%clk 0:01:02.4]} 22... Re7 {[%clk 0:01:05.3]} 23. Rxe7 {[%clk 0:00:56.7]}
23... Bxe7 {[%clk 0:01:06.2]} 24. Re1 {[%clk 0:00:56.7]} 24... Bc5 {[%clk
0:00:47.8]} 25. Qd3 {[%clk 0:00:46.1]} 25... Ng4 {[%clk 0:00:35.5]} 0-1